[Event "Live Chess"]
[Site "Chess.com"]
[Date "2024.06.02"]
[Round "-"]
[White "booktrunk"]
[Black "PureDashingOctopus"]
[Result "0-1"]
[WhiteElo "1501"]
[BlackElo "2270"]
[TimeControl "300"]
[EndTime "3:53:54 PDT"]
[Termination "PureDashingOctopus won by resignation"]

1. d4 {[%clk 0:04:53.7]} 1... Nf6 {[%clk 0:04:58.7]} 2. Nc3 {[%clk 0:04:51.4]}
2... d5 {[%clk 0:04:57.3]} 3. Bf4 {[%clk 0:04:50.7]} 3... e6 {[%clk 0:04:56.1]}
4. Nb5 {[%clk 0:04:47.1]} 4... Bb4+ {[%clk 0:04:51.6]} 5. c3 {[%clk 0:04:45]}
5... Ba5 {[%clk 0:04:50.9]} 6. a4 {[%clk 0:04:44.1]} 6... a6 {[%clk 0:04:49.4]}
7. b4 {[%clk 0:04:40.9]} 7... axb5 {[%clk 0:04:41.5]} 8. bxa5 {[%clk 0:04:38.5]}
8... Rxa5 {[%clk 0:04:40.2]} 9. axb5 {[%clk 0:04:34.2]} 9... Rxb5 {[%clk
0:04:36.5]} 10. e3 {[%clk 0:04:31.6]} 10... Rb6 {[%clk 0:04:33.1]} 11. Rb1
{[%clk 0:04:27.8]} 11... Rxb1 {[%clk 0:04:31.3]} 12. Qxb1 {[%clk 0:04:25.8]}
12... O-O {[%clk 0:04:30.4]} 13. Nf3 {[%clk 0:04:19.9]} 13... Nbd7 {[%clk
0:04:27.5]} 14. Bd3 {[%clk 0:04:15.1]} 14... h6 {[%clk 0:04:25.4]} 15. O-O
{[%clk 0:04:12.3]} 15... Re8 {[%clk 0:04:20.4]} 16. Qb5 {[%clk 0:04:04.8]} 16...
Nb6 {[%clk 0:04:15.8]} 17. Rb1 {[%clk 0:03:59.4]} 17... Bd7 {[%clk 0:04:13.5]}
18. Qb3 {[%clk 0:03:55.7]} 18... Ba4 {[%clk 0:04:12]} 19. Qb2 {[%clk 0:03:53.3]}
19... Ne4 {[%clk 0:04:03.5]} 20. Bxc7 {[%clk 0:03:46.1]} 20... Qxc7 {[%clk
0:04:01.1]} 21. Qxb6 {[%clk 0:03:44.1]} 21... Qxc3 {[%clk 0:03:58.6]} 22. Bb5
{[%clk 0:03:37.7]} 22... Bxb5 {[%clk 0:03:41.2]} 23. Qxb5 {[%clk 0:03:35.4]}
23... Rc8 {[%clk 0:03:39.9]} 24. h3 {[%clk 0:03:31.6]} 24... Qc2 {[%clk
0:03:38.5]} 25. Rf1 {[%clk 0:03:26.4]} 25... Qc6 {[%clk 0:03:13.4]} 26. Qb2
{[%clk 0:03:20.1]} 26... b5 {[%clk 0:03:11.5]} 27. Ne5 {[%clk 0:03:18]} 27...
Qb7 {[%clk 0:03:02.8]} 28. f3 {[%clk 0:03:13.7]} 28... Nc3 {[%clk 0:02:54.9]}
29. Kh2 {[%clk 0:03:02.7]} 29... b4 {[%clk 0:02:28.9]} 30. f4 {[%clk 0:03:00.8]}
30... Qb5 {[%clk 0:02:14.3]} 31. Rc1 {[%clk 0:02:55.7]} 31... Rb8 {[%clk
0:01:46.8]} 32. Rc2 {[%clk 0:02:35.3]} 32... Rb7 {[%clk 0:01:22.9]} 33. Rf2
{[%clk 0:02:25.8]} 33... Nd1 {[%clk 0:01:20.4]} 0-1

[Event "Live Chess"]
[Site "Chess.com"]
[Date "2024.06.02"]
[Round "-"]
[White "Queensandpawns"]
[Black "StoreySniper"]
[Result "0-1"]
[WhiteElo "2240"]
[BlackElo "2492"]
[TimeControl "300"]
[EndTime "3:54:01 PDT"]
[Termination "StoreySniper won by resignation"]

1. e4 {[%clk 0:04:55.9]} 1... g6 {[%clk 0:04:59.6]} 2. d4 {[%clk 0:04:54.6]}
2... Bg7 {[%clk 0:04:59.2]} 3. Nc3 {[%clk 0:04:43.8]} 3... c5 {[%clk 0:04:58.2]}
4. dxc5 {[%clk 0:04:43.1]} 4... Bxc3+ {[%clk 0:04:56.8]} 5. bxc3 {[%clk
0:04:43]} 5... Nf6 {[%clk 0:04:56.2]} 6. e5 {[%clk 0:04:39.5]} 6... Ne4 {[%clk
0:04:54.9]} 7. Nf3 {[%clk 0:04:29.7]} 7... Qa5 {[%clk 0:04:48.7]} 8. Qd4 {[%clk
0:04:28.5]} 8... Nxc5 {[%clk 0:04:45.3]} 9. Qb4 {[%clk 0:04:23.6]} 9... Qc7
{[%clk 0:04:41.6]} 10. Be3 {[%clk 0:04:21.6]} 10... b6 {[%clk 0:04:40.7]} 11.
Bc4 {[%clk 0:04:18.1]} 11... Nc6 {[%clk 0:04:35.5]} 12. Qb1 {[%clk 0:04:12.2]}
12... Nxe5 {[%clk 0:04:31.7]} 13. Bd5 {[%clk 0:04:07.3]} 13... Nxf3+ {[%clk
0:04:22.8]} 14. Bxf3 {[%clk 0:04:05.6]} 14... Bb7 {[%clk 0:04:12.3]} 15. Bxb7
{[%clk 0:04:04.6]} 15... Nxb7 {[%clk 0:04:11.1]} 16. O-O {[%clk 0:04:04.3]}
16... Qxc3 {[%clk 0:04:03.7]} 17. Rd1 {[%clk 0:04:00.4]} 17... Qc7 {[%clk
0:03:55.7]} 18. Qb5 {[%clk 0:03:52.3]} 18... Nd6 {[%clk 0:03:46.8]} 19. Qe5
{[%clk 0:03:50.5]} 19... f6 {[%clk 0:03:38]} 20. Qd5 {[%clk 0:03:46.3]} 20...
Rc8 {[%clk 0:03:31.6]} 21. Bf4 {[%clk 0:03:37.8]} 21... Qc6 {[%clk 0:03:22.5]}
22. Qd4 {[%clk 0:03:29]} 22... Nf7 {[%clk 0:03:14.2]} 23. Re1 {[%clk 0:03:09.7]}
23... e5 {[%clk 0:03:09.9]} 24. Qb4 {[%clk 0:03:05.5]} 24... d6 {[%clk
0:03:00.4]} 25. Bg3 {[%clk 0:02:54.4]} 25... O-O {[%clk 0:02:56]} 26. h4 {[%clk
0:02:51.1]} 26... h5 {[%clk 0:02:42.8]} 27. Rac1 {[%clk 0:02:31.6]} 27... Kg7
{[%clk 0:02:40.1]} 28. Red1 {[%clk 0:02:29.5]} 28... Qc4 {[%clk 0:02:36.9]} 29.
Qa3 {[%clk 0:02:27.7]} 29... Qc5 {[%clk 0:02:17]} 30. Qxa7 {[%clk 0:02:23.5]}
30... Rc7 {[%clk 0:02:14.2]} 31. Qa6 {[%clk 0:02:21.9]} 31... f5 {[%clk
0:02:03.7]} 32. c4 {[%clk 0:01:55.7]} 32... f4 {[%clk 0:02:01.6]} 33. Bh2 {[%clk
0:01:55.4]} 33... Nh6 {[%clk 0:01:53.4]} 34. Rd5 {[%clk 0:01:52.6]} 34... Qc6
{[%clk 0:01:48]} 35. Rcd1 {[%clk 0:01:42.1]} 35... Nf5 {[%clk 0:01:42.8]} 36.
Rb5 {[%clk 0:01:25.8]} 36... Rb8 {[%clk 0:01:09.9]} 37. Rb4 {[%clk 0:01:18.5]}
37... Nxh4 {[%clk 0:01:01.7]} 38. f3 {[%clk 0:01:13.7]} 38... Qc5+ {[%clk
0:00:56.7]} 0-1

[Event "Live Chess"]
[Site "Chess.com"]
[Date "2024.06.02"]
[Round "-"]
[White "elis06"]
[Black "silunn"]
[Result "1-0"]
[WhiteElo "2336"]
[BlackElo "2162"]
[TimeControl "300"]
[EndTime "3:54:03 PDT"]
[Termination "elis06 won by resignation"]

1. d4 {[%clk 0:04:57.5]} 1... e6 {[%clk 0:04:59.9]} 2. Nf3 {[%clk 0:04:56.1]}
2... d5 {[%clk 0:04:59.4]} 3. Bf4 {[%clk 0:04:54.4]} 3... Nf6 {[%clk 0:04:58.7]}
4. e3 {[%clk 0:04:53.6]} 4... c5 {[%clk 0:04:56.3]} 5. c3 {[%clk 0:04:52.7]}
5... a6 {[%clk 0:04:55]} 6. Nbd2 {[%clk 0:04:51.9]} 6... b5 {[%clk 0:04:54.1]}
7. Bd3 {[%clk 0:04:50]} 7... Nc6 {[%clk 0:04:52.2]} 8. O-O {[%clk 0:04:48.7]}
8... Bb7 {[%clk 0:04:48.3]} 9. Qe2 {[%clk 0:04:40.7]} 9... Be7 {[%clk
0:04:44.6]} 10. dxc5 {[%clk 0:04:37.7]} 10... Bxc5 {[%clk 0:04:41.5]} 11. e4
{[%clk 0:04:37.2]} 11... dxe4 {[%clk 0:04:39.6]} 12. Nxe4 {[%clk 0:04:36.4]}
12... Nxe4 {[%clk 0:04:34.9]} 13. Bxe4 {[%clk 0:04:36.3]} 13... h6 {[%clk
0:04:12.1]} 14. Rad1 {[%clk 0:04:32.1]} 14... Qf6 {[%clk 0:04:10.8]} 15. Be5
{[%clk 0:04:13.5]} 15... Nxe5 {[%clk 0:03:57.5]} 16. Bxb7 {[%clk 0:04:12.1]}
16... Nxf3+ {[%clk 0:03:51.7]} 17. Bxf3 {[%clk 0:04:08.2]} 17... Rb8 {[%clk
0:03:40]} 18. Bc6+ {[%clk 0:04:06.5]} 18... Kf8 {[%clk 0:03:33]} 19. a4 {[%clk
0:04:01.1]} 19... b4 {[%clk 0:03:20.4]} 20. Qc4 {[%clk 0:03:46.8]} 20... Qe7
{[%clk 0:02:58.7]} 21. Rd7 {[%clk 0:03:39.4]} 21... Qg5 {[%clk 0:02:56.3]} 22.
Qxa6 {[%clk 0:03:22.8]} 22... bxc3 {[%clk 0:02:41.8]} 23. bxc3 {[%clk
0:03:20.5]} 23... g6 {[%clk 0:02:37.4]} 24. Qd3 {[%clk 0:03:06.1]} 24... Rb2
{[%clk 0:02:30.6]} 25. Qf3 {[%clk 0:02:57.5]} 25... Rh7 {[%clk 0:02:08.3]} 26.
h3 {[%clk 0:02:44.2]} 26... Rd2 {[%clk 0:01:50.4]} 27. Rxd2 {[%clk 0:02:33.6]}
27... Qxd2 {[%clk 0:01:50.3]} 28. Rd1 {[%clk 0:02:30.7]} 28... Bxf2+ {[%clk
0:01:41.8]} 29. Kh1 {[%clk 0:02:27.3]} 29... Qc2 {[%clk 0:01:29]} 30. a5 {[%clk
0:02:07.4]} 30... Kg7 {[%clk 0:01:16.5]} 31. Rf1 {[%clk 0:02:00.8]} 1-0

[Event "Live Chess"]
[Site "Chess.com"]
[Date "2024.06.02"]
[Round "-"]
[White "karina55"]
[Black "vincents82"]
[Result "1-0"]
[WhiteElo "1925"]
[BlackElo "2001"]
[TimeControl "300"]
[EndTime "3:54:12 PDT"]
[Termination "karina55 won by resignation"]

1. e4 {[%clk 0:04:57.4]} 1... d5 {[%clk 0:04:59]} 2. exd5 {[%clk 0:04:56]} 2...
Qxd5 {[%clk 0:04:58.3]} 3. Nc3 {[%clk 0:04:54.2]} 3... Qd8 {[%clk 0:04:57.5]} 4.
d4 {[%clk 0:04:52.5]} 4... Nf6 {[%clk 0:04:56.1]} 5. Nf3 {[%clk 0:04:50.9]} 5...
Bg4 {[%clk 0:04:55.1]} 6. Be3 {[%clk 0:04:44.9]} 6... e6 {[%clk 0:04:52.4]} 7.
h3 {[%clk 0:04:43.1]} 7... Bxf3 {[%clk 0:04:51.5]} 8. Qxf3 {[%clk 0:04:41.1]}
8... c6 {[%clk 0:04:50.9]} 9. Bc4 {[%clk 0:04:36.5]} 9... Nbd7 {[%clk
0:04:48.2]} 10. O-O {[%clk 0:04:34.2]} 10... Be7 {[%clk 0:04:47.2]} 11. g4
{[%clk 0:04:26.1]} 11... Nd5 {[%clk 0:04:45.1]} 12. Nxd5 {[%clk 0:04:22.4]}
12... cxd5 {[%clk 0:04:43.4]} 13. Bd3 {[%clk 0:04:20.9]} 13... O-O {[%clk
0:04:41.8]} 14. Qg3 {[%clk 0:04:03.4]} 14... Nb6 {[%clk 0:04:36.2]} 15. b3
{[%clk 0:03:59.4]} 15... Bd6 {[%clk 0:04:34.2]} 16. Qg2 {[%clk 0:03:57.4]} 16...
Nd7 {[%clk 0:04:30.3]} 17. g5 {[%clk 0:03:49]} 17... f6 {[%clk 0:04:18.5]} 18.
f4 {[%clk 0:03:37.3]} 18... fxg5 {[%clk 0:04:13.1]} 19. fxg5 {[%clk 0:03:35.1]}
19... Qe7 {[%clk 0:04:10.9]} 20. Qg4 {[%clk 0:03:26.9]} 20... e5 {[%clk
0:04:07.3]} 21. Bf5 {[%clk 0:03:20.5]} 21... exd4 {[%clk 0:04:02.6]} 22. Bxd4
{[%clk 0:03:15.3]} 22... Ne5 {[%clk 0:04:00]} 23. Qg2 {[%clk 0:02:33.7]} 23...
g6 {[%clk 0:03:47.1]} 24. Qxd5+ {[%clk 0:02:06.2]} 24... Rf7 {[%clk 0:03:45.2]}
25. Be6 {[%clk 0:02:04.2]} 25... Rf8 {[%clk 0:03:38.7]} 26. Bxe5 {[%clk
0:01:58.2]} 26... Bxe5 {[%clk 0:03:32.4]} 27. Qxe5 {[%clk 0:01:52]} 27... Re8
{[%clk 0:03:24.9]} 28. Bxf7+ {[%clk 0:01:40]} 1-0

[Event "Live Chess"]
[Site "Chess.com"]
[Date "2024.06.02"]
[Round "-"]
[White "Kyrylo7770"]
[Black "Hoogleboogle"]
[Result "1-0"]
[WhiteElo "1647"]
[BlackElo "1348"]
[TimeControl "300"]
[EndTime "3:54:26 PDT"]
[Termination "Kyrylo7770 won by resignation"]

1. d4 {[%clk 0:04:58.7]} 1... Nf6 {[%clk 0:04:57]} 2. Nf3 {[%clk 0:04:57.8]}
2... e6 {[%clk 0:04:56.1]} 3. Bg5 {[%clk 0:04:57.2]} 3... d5 {[%clk 0:04:54.5]}
4. e3 {[%clk 0:04:56.6]} 4... Be7 {[%clk 0:04:53.3]} 5. c4 {[%clk 0:04:55.8]}
5... c6 {[%clk 0:04:51.1]} 6. Nc3 {[%clk 0:04:54.8]} 6... Nbd7 {[%clk
0:04:48.9]} 7. Bd3 {[%clk 0:04:53.4]} 7... h6 {[%clk 0:04:47.4]} 8. Bh4 {[%clk
0:04:52.4]} 8... g5 {[%clk 0:04:46]} 9. Bg3 {[%clk 0:04:51.9]} 9... b6 {[%clk
0:04:33.1]} 10. O-O {[%clk 0:04:48.7]} 10... Ba6 {[%clk 0:04:31.2]} 11. Ne5
{[%clk 0:04:44.7]} 11... Bxc4 {[%clk 0:04:23.8]} 12. Bxc4 {[%clk 0:04:43.6]}
12... dxc4 {[%clk 0:04:23]} 13. Nxc6 {[%clk 0:04:43]} 13... Qc8 {[%clk
0:04:17.6]} 14. Qa4 {[%clk 0:04:41.9]} 14... Nd5 {[%clk 0:03:56.9]} 15. Ne5
{[%clk 0:04:26.5]} 15... Nxc3 {[%clk 0:03:22.5]} 16. bxc3 {[%clk 0:04:23.7]}
16... Bd6 {[%clk 0:03:10.7]} 17. Nxc4 {[%clk 0:04:09.6]} 17... Bxg3 {[%clk
0:03:08.2]} 18. fxg3 {[%clk 0:04:09.3]} 18... O-O {[%clk 0:02:59.8]} 19. Nd6
{[%clk 0:03:58.7]} 19... Qc7 {[%clk 0:02:46.4]} 20. Ne4 {[%clk 0:03:51]} 20...
f5 {[%clk 0:02:28.6]} 21. Nd2 {[%clk 0:03:27.6]} 21... Rfd8 {[%clk 0:02:17.1]}
22. c4 {[%clk 0:03:25.5]} 22... Nf6 {[%clk 0:02:14.2]} 23. Nb3 {[%clk
0:03:19.9]} 23... Ne4 {[%clk 0:02:10.2]} 24. Qa6 {[%clk 0:03:10.3]} 24... Kf7
{[%clk 0:02:00.5]} 25. Rac1 {[%clk 0:02:59.7]} 25... Kf6 {[%clk 0:01:35.3]} 26.
d5 {[%clk 0:02:58.1]} 26... exd5 {[%clk 0:01:30.9]} 27. cxd5 {[%clk 0:02:57.4]}
27... Qd6 {[%clk 0:01:27.9]} 28. Rc6 {[%clk 0:02:56.5]} 28... Nc5 {[%clk
0:01:02.2]} 29. Rxd6+ {[%clk 0:02:54.6]} 29... Rxd6 {[%clk 0:00:59.4]} 30. Nxc5
{[%clk 0:02:53.5]} 30... bxc5 {[%clk 0:00:53.9]} 31. Qxd6+ {[%clk 0:02:51.4]}
1-0

[Event "Live Chess"]
[Site "Chess.com"]
[Date "2024.06.02"]
[Round "-"]
[White "ameetghasi100"]
[Black "wadsy27"]
[Result "0-1"]
[WhiteElo "2766"]
[BlackElo "2593"]
[TimeControl "300"]
[EndTime "3:54:55 PDT"]
[Termination "wadsy27 won by checkmate"]

1. d4 {[%clk 0:04:43.1]} 1... Nf6 {[%clk 0:04:57.3]} 2. c3 {[%clk 0:04:43]} 2...
d5 {[%clk 0:04:55.4]} 3. Nf3 {[%clk 0:04:42.2]} 3... c6 {[%clk 0:04:54.4]} 4.
Bg5 {[%clk 0:04:41.1]} 4... Bf5 {[%clk 0:04:52.3]} 5. h4 {[%clk 0:04:40.4]} 5...
h6 {[%clk 0:04:51.1]} 6. Bxf6 {[%clk 0:04:37.4]} 6... exf6 {[%clk 0:04:51]} 7.
e3 {[%clk 0:04:36.6]} 7... Bd6 {[%clk 0:04:50]} 8. a3 {[%clk 0:04:33.4]} 8... a5
{[%clk 0:04:48.6]} 9. Nbd2 {[%clk 0:04:29.8]} 9... Qb6 {[%clk 0:04:39.9]} 10. b4
{[%clk 0:04:22]} 10... O-O {[%clk 0:04:37.2]} 11. c4 {[%clk 0:04:18.2]} 11...
axb4 {[%clk 0:04:06.6]} 12. c5 {[%clk 0:04:15.8]} 12... Qa5 {[%clk 0:03:58.5]}
13. Nb3 {[%clk 0:04:07.7]} 13... Qa4 {[%clk 0:03:55.6]} 14. cxd6 {[%clk
0:03:56.7]} 14... bxa3 {[%clk 0:03:52.5]} 15. Be2 {[%clk 0:03:32.4]} 15... Na6
{[%clk 0:03:45.5]} 16. O-O {[%clk 0:03:12.3]} 16... b6 {[%clk 0:03:43.6]} 17.
Bd3 {[%clk 0:03:03.9]} 17... Bxd3 {[%clk 0:03:25.5]} 18. Qxd3 {[%clk 0:03:03.8]}
18... Nb4 {[%clk 0:03:22.9]} 19. Qc3 {[%clk 0:02:56.9]} 19... Rfd8 {[%clk
0:03:20.4]} 20. Rfc1 {[%clk 0:02:50.2]} 20... Rxd6 {[%clk 0:03:17.9]} 21. Ne1
{[%clk 0:02:47.7]} 21... Qb5 {[%clk 0:02:47.1]} 22. Nd2 {[%clk 0:02:35.7]} 22...
a2 {[%clk 0:02:41.1]} 23. Nc2 {[%clk 0:02:16.2]} 23... Nd3 {[%clk 0:02:11.8]}
24. Rd1 {[%clk 0:02:11.6]} 24... Nb2 {[%clk 0:02:01.6]} 25. Rf1 {[%clk
0:02:03.3]} 25... Nc4 {[%clk 0:01:58.2]} 26. Nxc4 {[%clk 0:01:43]} 26... dxc4
{[%clk 0:01:47.2]} 27. Nb4 {[%clk 0:01:36.4]} 27... Rd7 {[%clk 0:01:34.9]} 28.
Rxa2 {[%clk 0:01:17.5]} 28... Rxa2 {[%clk 0:01:33.5]} 29. Nxa2 {[%clk
0:01:17.4]} 29... Ra7 {[%clk 0:01:32.5]} 30. Nb4 {[%clk 0:01:16.4]} 30... Ra4
{[%clk 0:01:30.6]} 31. Nc2 {[%clk 0:01:14.1]} 31... Qb3 {[%clk 0:01:24.1]} 32.
Qd2 {[%clk 0:01:12.7]} 32... Ra2 {[%clk 0:01:22.3]} 33. Rc1 {[%clk 0:01:09.2]}
33... b5 {[%clk 0:01:12.9]} 34. e4 {[%clk 0:01:07.6]} 34... c3 {[%clk
0:00:35.5]} 35. Qd3 {[%clk 0:01:05.2]} 35... Qb2 {[%clk 0:00:34.8]} 36. Qe3
{[%clk 0:01:01.5]} 36... b4 {[%clk 0:00:30.1]} 37. d5 {[%clk 0:00:58.9]} 37...
cxd5 {[%clk 0:00:27.2]} 38. exd5 {[%clk 0:00:57.1]} 38... b3 {[%clk 0:00:25.7]}
39. Nb4 {[%clk 0:00:53.2]} 39... Ra1 {[%clk 0:00:18.3]} 40. Nd3 {[%clk
0:00:24.4]} 40... Qxc1+ {[%clk 0:00:17.4]} 41. Nxc1 {[%clk 0:00:24.3]} 41... b2
{[%clk 0:00:16.8]} 42. Qe8+ {[%clk 0:00:20.9]} 42... Kh7 {[%clk 0:00:15.2]} 43.
Qe4+ {[%clk 0:00:19]} 43... g6 {[%clk 0:00:14.5]} 44. Qe7 {[%clk 0:00:18]} 44...
bxc1=Q+ {[%clk 0:00:13.8]} 45. Kh2 {[%clk 0:00:17.5]} 45... Qf4+ {[%clk
0:00:12.7]} 46. g3 {[%clk 0:00:12.6]} 46... Qxf2+ {[%clk 0:00:11.8]} 47. Kh3
{[%clk 0:00:12.3]} 47... Rh1+ {[%clk 0:00:11]} 48. Kg4 {[%clk 0:00:11.9]} 48...
Qf5# {[%clk 0:00:10.3]} 0-1

[Event "Live Chess"]
[Site "Chess.com"]
[Date "2024.06.02"]
[Round "-"]
[White "lateforthesky"]
[Black "Tatarinov_Maxim"]
[Result "1/2-1/2"]
[WhiteElo "2077"]
[BlackElo "2306"]
[TimeControl "300"]
[EndTime "3:55:13 PDT"]
[Termination "Game drawn - insufficient material"]

1. e4 {[%clk 0:04:54.6]} 1... c5 {[%clk 0:04:57.9]} 2. Nf3 {[%clk 0:04:53.3]}
2... Nc6 {[%clk 0:04:57.2]} 3. Bb5 {[%clk 0:04:51.4]} 3... Qb6 {[%clk
0:04:55.6]} 4. Nc3 {[%clk 0:04:46.3]} 4... e6 {[%clk 0:04:53.8]} 5. O-O {[%clk
0:04:43.9]} 5... d6 {[%clk 0:04:53.1]} 6. Re1 {[%clk 0:04:42.4]} 6... Bd7 {[%clk
0:04:52.3]} 7. a4 {[%clk 0:04:40]} 7... Nf6 {[%clk 0:04:50.9]} 8. b3 {[%clk
0:04:29.9]} 8... Be7 {[%clk 0:04:48.7]} 9. Bb2 {[%clk 0:04:27.1]} 9... O-O
{[%clk 0:04:47.3]} 10. Bf1 {[%clk 0:04:12.1]} 10... a6 {[%clk 0:04:44]} 11. g3
{[%clk 0:04:09.5]} 11... Qc7 {[%clk 0:04:43.2]} 12. Bg2 {[%clk 0:04:06.8]} 12...
Rab8 {[%clk 0:04:42.6]} 13. d4 {[%clk 0:04:01.7]} 13... cxd4 {[%clk 0:04:38.9]}
14. Nxd4 {[%clk 0:04:00.8]} 14... Nxd4 {[%clk 0:04:36.9]} 15. Qxd4 {[%clk
0:03:59.8]} 15... b5 {[%clk 0:04:35.6]} 16. axb5 {[%clk 0:03:56.1]} 16... axb5
{[%clk 0:04:35.5]} 17. Ra7 {[%clk 0:03:53.8]} 17... Qb6 {[%clk 0:04:26.2]} 18.
Qxb6 {[%clk 0:03:47.6]} 18... Rxb6 {[%clk 0:04:26.1]} 19. e5 {[%clk 0:03:30.7]}
19... dxe5 {[%clk 0:04:21.2]} 20. Ne4 {[%clk 0:03:21.9]} 20... Rd8 {[%clk
0:03:44]} 21. Bxe5 {[%clk 0:03:12.8]} 21... Nxe4 {[%clk 0:03:33.4]} 22. Bxe4
{[%clk 0:03:09.1]} 22... Bd6 {[%clk 0:03:32.7]} 23. Bd4 {[%clk 0:02:58.9]} 23...
Rbb8 {[%clk 0:03:27.3]} 24. Be3 {[%clk 0:02:48.2]} 24... Be8 {[%clk 0:03:24.1]}
25. Rd1 {[%clk 0:02:40.2]} 25... Bc5 {[%clk 0:03:15.1]} 26. Rxd8 {[%clk
0:02:35]} 26... Bxa7 {[%clk 0:03:13.6]} 27. Rxb8 {[%clk 0:02:26.5]} 27... Bxb8
{[%clk 0:03:13.5]} 28. c4 {[%clk 0:02:19.4]} 28... bxc4 {[%clk 0:03:10.4]} 29.
bxc4 {[%clk 0:02:17.7]} 29... f5 {[%clk 0:03:10.3]} 30. Bd3 {[%clk 0:02:14.3]}
30... Bc6 {[%clk 0:03:07.1]} 31. Kf1 {[%clk 0:02:08.7]} 31... Kf7 {[%clk
0:03:06.4]} 32. Ke2 {[%clk 0:02:07.7]} 32... h6 {[%clk 0:03:05.8]} 33. Kd2
{[%clk 0:02:06.7]} 33... g5 {[%clk 0:03:05.3]} 34. f4 {[%clk 0:02:04.9]} 34...
Kf6 {[%clk 0:03:01.2]} 35. fxg5+ {[%clk 0:02:02.4]} 35... hxg5 {[%clk
0:02:59.9]} 36. Kc3 {[%clk 0:02:01.6]} 36... e5 {[%clk 0:02:57]} 37. Kb4 {[%clk
0:01:58.7]} 37... e4 {[%clk 0:02:56.2]} 38. Be2 {[%clk 0:01:48.8]} 38... f4
{[%clk 0:02:54.5]} 39. gxf4 {[%clk 0:01:44.3]} 39... gxf4 {[%clk 0:02:54.4]} 40.
Bd4+ {[%clk 0:01:42.3]} 40... Kf5 {[%clk 0:02:51.1]} 41. Kc3 {[%clk 0:01:32.2]}
41... f3 {[%clk 0:02:46.8]} 42. Bf1 {[%clk 0:01:30]} 42... Bxh2 {[%clk
0:02:44.6]} 43. Be3 {[%clk 0:01:23.1]} 43... Bf4 {[%clk 0:02:40]} 44. Kd2 {[%clk
0:01:21.2]} 44... Kg4 {[%clk 0:02:30.6]} 45. c5 {[%clk 0:01:16.3]} 45... f2
{[%clk 0:02:24]} 46. Ke2 {[%clk 0:00:54.8]} 46... Bb5+ {[%clk 0:02:22.8]} 47.
Kxf2 {[%clk 0:00:54.1]} 47... Bxf1 {[%clk 0:01:23.1]} 48. Bxf4 {[%clk
0:00:45.7]} 48... Kxf4 {[%clk 0:01:19.4]} 49. Kxf1 {[%clk 0:00:44.6]} 49... Ke5
{[%clk 0:01:16.4]} 50. Ke2 {[%clk 0:00:43.5]} 50... Kd5 {[%clk 0:01:15.2]} 51.
Ke3 {[%clk 0:00:41.9]} 51... Kxc5 {[%clk 0:01:15.1]} 52. Kxe4 {[%clk 0:00:40.9]}
1/2-1/2

[Event "Live Chess"]
[Site "Chess.com"]
[Date "2024.06.02"]
[Round "-"]
[White "ZatixMajor"]
[Black "yarek"]
[Result "1-0"]
[WhiteElo "2035"]
[BlackElo "1751"]
[TimeControl "300"]
[EndTime "3:55:13 PDT"]
[Termination "ZatixMajor won by resignation"]

1. c4 {[%clk 0:04:59.5]} 1... g6 {[%clk 0:04:58]} 2. g3 {[%clk 0:04:58.9]} 2...
Bg7 {[%clk 0:04:57.5]} 3. Bg2 {[%clk 0:04:58.3]} 3... c6 {[%clk 0:04:56.3]} 4.
Nc3 {[%clk 0:04:57.9]} 4... Nf6 {[%clk 0:04:52.8]} 5. Nf3 {[%clk 0:04:56.6]}
5... d5 {[%clk 0:04:52.2]} 6. cxd5 {[%clk 0:04:55.9]} 6... cxd5 {[%clk
0:04:51.8]} 7. d4 {[%clk 0:04:52.9]} 7... e6 {[%clk 0:04:48.6]} 8. O-O {[%clk
0:04:52.3]} 8... O-O {[%clk 0:04:47.6]} 9. Bg5 {[%clk 0:04:48.4]} 9... h6 {[%clk
0:04:43.9]} 10. Bf4 {[%clk 0:04:47]} 10... Nc6 {[%clk 0:04:41.4]} 11. Qd2 {[%clk
0:04:45.2]} 11... Kh7 {[%clk 0:04:38.1]} 12. Ne5 {[%clk 0:04:34.2]} 12... Nh5
{[%clk 0:04:21]} 13. Nxc6 {[%clk 0:04:30.6]} 13... bxc6 {[%clk 0:04:18.1]} 14.
Be3 {[%clk 0:04:29.7]} 14... Ba6 {[%clk 0:04:07.3]} 15. Na4 {[%clk 0:04:24.8]}
15... Nf6 {[%clk 0:04:02.4]} 16. Nc5 {[%clk 0:04:23.1]} 16... Qc8 {[%clk
0:03:58]} 17. Rfe1 {[%clk 0:04:19.3]} 17... Rb8 {[%clk 0:03:54]} 18. Qa5 {[%clk
0:04:17.6]} 18... Bc4 {[%clk 0:03:31.6]} 19. b3 {[%clk 0:04:13.8]} 19... Rb5
{[%clk 0:03:07]} 20. Qxa7 {[%clk 0:04:11.9]} 20... Rb8 {[%clk 0:02:40.6]} 21.
bxc4 {[%clk 0:04:04.4]} 21... dxc4 {[%clk 0:02:27.6]} 22. Bf4 {[%clk 0:03:53.1]}
22... Rb2 {[%clk 0:02:17.7]} 23. Rab1 {[%clk 0:03:42.5]} 23... Rxb1 {[%clk
0:02:01.6]} 24. Rxb1 {[%clk 0:03:38.9]} 24... Nd5 {[%clk 0:02:01.5]} 25. Rb8
{[%clk 0:03:34]} 25... Qxb8 {[%clk 0:01:40.7]} 26. Bxb8 {[%clk 0:03:26.2]} 26...
Bxd4 {[%clk 0:01:39.3]} 27. Bd6 {[%clk 0:03:16.9]} 1-0

[Event "Live Chess"]
[Site "Chess.com"]
[Date "2024.06.02"]
[Round "-"]
[White "StoreySniper"]
[Black "booktrunk"]
[Result "1-0"]
[WhiteElo "2492"]
[BlackElo "1501"]
[TimeControl "300"]
[EndTime "3:55:48 PDT"]
[Termination "StoreySniper won by resignation"]

1. e4 {[%clk 0:04:58.3]} 1... b6 {[%clk 0:04:54.7]} 2. d4 {[%clk 0:04:56.7]}
2... Bb7 {[%clk 0:04:51.2]} 3. c4 {[%clk 0:04:55.9]} 3... h6 {[%clk 0:04:47.5]}
4. Nc3 {[%clk 0:04:54]} 4... e6 {[%clk 0:04:42.7]} 5. Nf3 {[%clk 0:04:47.6]}
5... Nf6 {[%clk 0:04:38.9]} 6. e5 {[%clk 0:04:45.6]} 6... Nh7 {[%clk 0:04:34.6]}
7. h4 {[%clk 0:04:37.4]} 7... f6 {[%clk 0:04:33.2]} 8. Bd3 {[%clk 0:04:30.2]}
8... fxe5 {[%clk 0:04:28.8]} 9. Bg6+ {[%clk 0:04:28.7]} 9... Ke7 {[%clk
0:04:22.4]} 10. Nxe5 {[%clk 0:04:27]} 10... Nf6 {[%clk 0:04:05.6]} 11. Nf7
{[%clk 0:04:15.8]} 1-0